Cogmind - Beta 16 @@@ ROGUE MODE // 2025.12.30 @ 21:05:55 Player: Glyb Result: Destroyed by C-17 Slicer with Concussive RPG Performance ------------- Evolutions (3) 1500 Regions Visited (4) 800 Robots Destroyed (50) 250 Value Destroyed (1325) 1325 Prototype IDs (3) 60 Alien Tech Used (0) 0 Bonus (0) 0 TOTAL SCORE: 3935 Bonus ------- None Cogmind --------- Core Integrity 0/700 Matter 37/300 Energy 99/100 System Corruption 10% Temperature Cool (0) Movement Core (50) Location -7/Factory Parts ------- > --- POWER (1) -------- (None) > --- PROPULSION (3) --- (None) > --- UTILITY (6) ------ (None) > --- WEAPON (3) ------- (None) > --- INVENTORY (5) ---- Large Storage Unit Hardened Medium Armor Plating Ion Cannon Plasma Cannon Peak State ------------ > --- POWER ------------ (None) > --- PROPULSION ------- Titanium Leg Improved Titanium Leg > --- UTILITY ---------- Improved Terrain Scanner Advanced ECM Suite > --- WEAPON ----------- Ion Cannon Plasma Cannon Plasma Cannon > --- INVENTORY -------- Cesium-ion Thruster Large Storage Unit Hardened Medium Armor Plating Plasma Cannon [Rating: 26] Favorites ----------- Power Heavy Ion Engine Engine Heavy Ion Engine Power Core Light Nuclear Core Propulsion Wheel Leg Improved Titanium Leg Wheel Wheel Flight Unit Cesium-ion Thruster Utility Targeting Computer Device Cooling System Storage Large Storage Unit Processor Targeting Computer Protection Backup Plating I Weapon Beam Cannon Energy Gun Beam Rifle Energy Cannon Beam Cannon Ballistic Gun Assault Rifle Launcher Grenade Launcher Special Weapon Mining Laser Impact Weapon Mace Build | -11 -10 -9 -8 -7 ------- Run | Yrd Mat Mat Mat Fac Slots Evolved 6 | . . 2 2 2 Power . | . . . . . Propulsion 1 | . . . . 1 Utility 4 | . . 2 1 1 Weapon 1 | . . . 1 . Parts Attached 53 | 5 7 14 12 15 Power 7 | 1 2 2 1 1 Engine 4 | 1 1 2 . . Core 3 | . 1 . 1 1 Reactor . | . . . . . Propulsion 11 | 2 . 3 2 4 Treads . | . . . . . Leg 2 | . . . . 2 Wheel 8 | 2 . 3 2 1 Hover . | . . . . . Flight 1 | . . . . 1 Utility 15 | 1 1 4 4 5 Device 6 | . . 2 2 2 Storage 4 | 1 1 . . 2 Processor 3 | . . 2 1 . Hackware . | . . . . . Protection 2 | . . . 1 1 Artifact . | . . . . . Weapon 20 | 1 4 5 5 5 Energy Gun 5 | . 1 2 2 . Energy Cannon 8 | . 2 1 2 3 Ballistic Gun 2 | 1 1 . . . Ballistic Cannon . | . . . . . Launcher 2 | . . 1 . 1 Special Weapon 1 | . . . 1 . Impact Weapon 2 | . . 1 . 1 Slashing Weapon . | . . . . . Piercing Weapon . | . . . . . Special Melee Weapon . | . . . . . Unidentified Prototypes 3 | . . 3 . . Parts Lost 30 | . 4 5 12 9 Power 4 | . 2 1 . 1 Propulsion 11 | . . 3 4 4 Utility 5 | . . 1 2 2 Weapon 10 | . 2 . 6 2 Highest Loss Streak 6 | . 2 2 6 6 To Critical Strikes . | . . . . . Average Backups 9 | 1 6 13 13 2 Power . | . . . 1 . Propulsion . | . . 1 . 1 Utility 5 | . 3 8 10 1 Weapon 1 | 1 1 2 1 . Tool/Special . | . . . . . Unused Backups 8 | . . . 7 1 Power . | . . . . . Propulsion . | . . . . . Utility 7 | . . . 7 . Weapon 1 | . . . . 1 Tool/Special . | . . . . . Average Slot Usage (%) 82 | . 87 94 89 48 Engine 7 | . 10 11 5 . Core 2 | . 3 . 3 3 Leg 1 | . . . . 4 Wheel 15 | . 26 17 12 4 Device 7 | . . 11 8 8 Storage 10 | . 14 11 9 7 Processor 11 | . . 16 26 . Protection 5 | . 6 5 . 8 Energy Gun 3 | . 6 . 8 . Energy Cannon 12 | . 3 21 10 8 Ballistic Gun 3 | . 15 . . . Peak Build Rating 26 | 5 9 15 22 26 Average Rating 12 | 3 6 11 17 17 On Entrance 5 | . 5 8 13 . Avg Prop Armor Cover (%) 8 | . . . . 8 Naked Turns 24 | . . . 8 16 Heaviest Build 66 | 10 30 37 42 66 Greatest Support 37 | 26 26 26 20 37 Greatest Overweight (x) 9 | . 1 3 9 6 Average Overweight (x) 1 | . . 1 1 2 Largest Inventory Capacity 15 | 8 15 15 15 15 Average Capacity 13 | 7 14 15 14 10 Most Carried 15 | 3 12 15 15 5 Average Carried 9 | 1 6 13 13 2 Final Capacity 15 | 8 15 15 5 5 Final Carried 15 | 3 12 15 5 4 Class Distribution -------------------- 83% | Mutant 12% | Gunner Dominant Class ---------------- Mutant | -10/Materials Mutant | -9/Materials Gunner | -8/Materials Mutant | -7/Factory Resources | -11 -10 -9 -8 -7 ----------- Run | Yrd Mat Mat Mat Fac Matter Collected 799 | 196 303 190 110 . Remotely . | . . . . . Salvage Created 1604 | . 283 862 438 21 Parts 100 | . 19 50 31 . Haulers Intercepted 4 | . 1 3 . . Recyclers Shooed 2 | . . 2 . . Parts Field Recycled . | . . . . . Retrieved Matter . | . . . . . Parts Self-Destructed . | . . . . . Prevented . | . . . . . Parts Restored . | . . . . . Kills | -11 -10 -9 -8 -7 ------- Run | Yrd Mat Mat Mat Fac Combat Hostiles Destroyed 37 | . 4 18 13 2 Guns 6 | . 4 . 2 . Cannons 27 | . . 16 11 . AOE 4 | . . 2 . 2 Classes Destroyed 7 | . 4 2 1 . Worker 5 | . 1 2 1 1 Tunneler 1 | . . . 1 . Hauler 4 | . 1 3 . . Watcher 3 | . 1 1 1 . Swarmer 10 | . . 3 7 . Grunt 18 | . 4 11 2 1 Sentry 9 | . . 4 4 1 Best Kill Streak 7 | . 3 7 5 3 Combat Bots Only 5 | . 2 5 5 1 Max Kills in Single Turn 1 | . 1 1 1 1 Gunslinging . | . . . . . Exploded 1 | . . 1 . 1 Melee . | . . . . . Uniques/NPCs Destroyed . | . . . . . Combat | -11 -10 -9 -8 -7 -------- Run | Yrd Mat Mat Mat Fac Hostile Shots Fired 449 | . 41 61 128 219 Missed 174 | . 11 17 29 117 Hits 275 | . 30 44 99 102 Melee 3 | . . . . 3 Projectile 272 | . 30 44 99 99 AOE 4 | . . . . 4 Critical Strikes 7 | . . . 2 5 Damage Taken 4290 | . 463 572 1301 1954 Core 1305 | . 38 209 352 706 Absorbed by Shields . | . . . . . Regen/Repaired (Parts) 64 | . 64 . . . Core Remaining (%) 66 | 100 84 47 36 . Volleys Fired 155 | . 41 66 40 8 Largest 3 | . 2 2 3 3 Hottest 199 | . 60 120 176 199 Shots Fired 297 | . 72 127 84 14 Gun 98 | . 72 . 26 . Cannon 181 | . . 124 51 6 Launcher 11 | . . 3 . 8 Special 7 | . . . 7 . Kinetic 59 | . 59 . . . Thermal 196 | . . 124 66 6 Explosive 11 | . . 3 . 8 Electromagnetic 31 | . 13 . 18 . Robot Hit Streak 24 | . 7 24 23 4 Robot Miss Streak 5 | . 5 4 2 3 Penetration Max . | . . . . . Secondary Targets . | . . . . . Shots Hit Robots 186 | . 38 82 59 7 Core Hits 66 | . 14 26 20 6 Critical Kills . | . . . . . Critical Parts Destroyed 1 | . 1 . . . Critical Strikes 1 | . 1 . . . Destroy 1 | . 1 . . . Melee Attacks . | . . . . . Impact . | . . . . . Slashing . | . . . . . Piercing . | . . . . . Sneak Attacks . | . . . . . Combat Hostiles . | . . . . . Follow-up Attacks . | . . . . . Damage Inflicted 3673 | . 590 1601 1098 384 Guns 772 | . 519 . 253 . Cannons 2217 | . . 1414 725 78 Explosions 514 | . 46 171 . 297 Melee . | . . . . . Ramming 50 | . 25 16 . 9 Kinetic 406 | . 406 . . . Thermal 2371 | . 46 1414 833 78 Explosive 468 | . . 171 . 297 Electromagnetic 378 | . 113 . 265 . Impact . | . . . . . Slashing . | . . . . . Piercing . | . . . . . Highest Corruption 9 | . 2 . . 9 Average Corruption 2 | . 1 . . 9 Corruption Purged . | . . . . . Corruption Blocked . | . . . . . Effects 2 | . . . . 2 Matter Fused 2 | . . . . 2 Overload Shots . | . . . . . Overflow Damage 118 | . . 40 36 42 Projectiles 52 | . . 16 36 . Explosions 66 | . . 24 . 42 Melee . | . . . . . Knockbacks 1 | . 1 . . . Impact 1 | . 1 . . . Kinetic . | . . . . . Secondary . | . . . . . Self-Inflicted Damage 128 | . 12 8 . 108 Shots 4 | . . . . 4 Rammed 5 | . 3 1 . 1 Targets Rammed 6 | . 3 1 . 2 Kicked 1 | . . . . 1 Crushed . | . . . . . Highest Temperature 210 | . 18 5 210 192 Average Temperature 57 | . 5 2 87 76 Received Heat Transfer 1350 | . 201 168 558 423 Siege Activations . | . . . . . Martial Activations . | . . . . . Shielding Activations . | . . . . . Robots Disrupted . | . . . . . Combat Hostiles . | . . . . . Robots Corrupted . | . . . . . Combat Hostiles . | . . . . . Parts Fried 3 | . 1 . 2 . Impact Corruptions . | . . . . . Robots Melted . | . . . . . Combat Hostiles . | . . . . . Parts Melted 9 | . . 8 1 . Heat Transferred 4877 | . . 2997 1730 150 Parts Sabotaged . | . . . . . Parts Stolen . | . . . . . Parts Stripped . | . . . . . Power Chain Reactions 1 | . 1 . . . Alert | -11 -10 -9 -8 -7 ------- Run | Yrd Mat Mat Mat Fac Maximum Alert Level 1 | . . 1 . . Low Security (%) 87 | 100 100 61 100 100 Level 1 12 | . . 38 . . Level 2 . | . . . . . Level 3 . | . . . . . Level 4 . | . . . . . Level 5 . | . . . . . High Security . | . . . . . Max Security . | . . . . . Peak Influence 255 | . 45 255 161 129 Initial 29 | . . . 4 29 Average 68 | . 7 124 104 19 Influence Increases 1319 | . 121 570 397 231 Destroy 0b10 Robot/C 740 | . 80 360 260 40 Destroy 0b10 Robot/NC 65 | . 15 30 15 5 Destroy Leader 224 | . 24 108 72 20 Successful Hack 49 | . 2 7 16 24 Disable Machine 105 | . . 30 . 75 Destroy Structure 61 | . . 20 4 37 Lose Combat Pursuer 75 | . . 15 30 30 Influence Decreases 1226 | . 121 558 344 203 Entered New Map 44 | . . . 8 36 Time Decay 737 | . 111 303 216 107 Lost Part 230 | . 10 40 120 60 Purge Threat 215 | . . 215 . . Squads Dispatched 10 | . 1 5 2 2 Investigation 6 | . . 4 1 1 Extermination . | . . . . . Reinforcement 4 | . 1 1 1 1 Assault . | . . . . . Garrison . | . . . . . Intercept . | . . . . . Searches Triggered . | . . . . . Construction Impeded 1 | . . . 1 . Haulers Reinforced . | . . . . . Active Scanning Responses . | . . . . . Cargo Convoy Interrupts . | . . . . . Stealth | -11 -10 -9 -8 -7 --------- Run | Yrd Mat Mat Mat Fac Distress Signals 2 | . . 1 1 . Communications Jammed . | . . . . . Distress Signals . | . . . . . Times Spotted 70 | . 9 21 22 18 Peak Tracking Total 9 | . 2 4 6 9 Tactical Retreats 4 | . . 1 2 1 Traps | -11 -10 -9 -8 -7 ------- Run | Yrd Mat Mat Mat Fac Traps Triggered 5 | . 3 1 . 1 Indirectly . | . . . . . Trap Hack Attempts . | . . . . . Triggered . | . . . . . Disarmed . | . . . . . Reprogrammed . | . . . . . Reused . | . . . . . Traps Extracted . | . . . . . Installed . | . . . . . Triggered . | . . . . . Machines | -11 -10 -9 -8 -7 ---------- Run | Yrd Mat Mat Mat Fac Machines Disabled 7 | . . 2 . 5 Max in Single Turn 2 | . . 1 . 2 Machines Repaired . | . . . . . Machines Dismantled . | . . . . . Machines Sabotaged . | . . . . . Overloaded Fab Kills . | . . . . . Hacking | -11 -10 -9 -8 -7 --------- Run | Yrd Mat Mat Mat Fac Machines Accessed 11 | . 1 5 3 2 Terminals 9 | . . 5 2 2 Fabricators . | . . . . . Repair Stations 2 | . 1 . 1 . Recycling Units . | . . . . . Scanalyzers . | . . . . . Garrison Access . | . . . . . Total Hacks 36 | . 7 16 9 4 Successful 14 | . 6 4 2 2 Failed 22 | . 1 12 7 2 Catastrophic 5 | . . 2 2 1 Database Lockouts . | . . . . . Manual 11 | . . 8 3 . Terminals 25 | . . 16 5 4 Fabricators . | . . . . . Repair Stations 11 | . 7 . 4 . Recycling Units . | . . . . . Scanalyzers . | . . . . . Garrison Access . | . . . . . Terminal Hacks 7 | . . 4 1 2 Record 2 | . . . 1 1 Open DSF 1 | . . . . 1 Branch Access Points 1 | . . 1 . . Unreport Threat 2 | . . 2 . . Locate Traps 1 | . . 1 . . Fabricator Hacks . | . . . . . Repair Station Hacks 7 | . 6 . 1 . Scan Component 4 | . 3 . 1 . Repair 2 | . 2 . . . Refit 1 | . 1 . . . Recycling Unit Hacks . | . . . . . Scanalyzer . | . . . . . Garrison Access Hacks . | . . . . . Unauthorized Hacks . | . . . . . Terminals . | . . . . . Fabricators . | . . . . . Repair Stations . | . . . . . Recycling Units . | . . . . . Scanalyzers . | . . . . . Garrison Access . | . . . . . Data Cores Recovered . | . . . . . Used . | . . . . . Hacking Detections 11 | . 1 5 3 2 Full Trace Events 7 | . . 4 2 1 Feedback Events . | . . . . . Feedback Blocked . | . . . . . Robot Schematics Acquired . | . . . . . Robots Built . | . . . . . Authchips . | . . . . . Time . | . . . . . Total Robot Build Rating . | . . . . . Part Schematics Acquired . | . . . . . Parts Built . | . . . . . Authchips . | . . . . . Time . | . . . . . Total Part Build Rating . | . . . . . Part Studies Acquired . | . . . . . Parts Repaired 2 | . 2 . . . Time 52 | . 52 . . . Parts Recycled . | . . . . . Recycled Matter . | . . . . . Retrieved Matter . | . . . . . Retrieved Components . | . . . . . Parts Scanalyzed . | . . . . . Part Schematics Acquired . | . . . . . Parts Damaged . | . . . . . Bothacking | -11 -10 -9 -8 -7 ------------ Run | Yrd Mat Mat Mat Fac Used RIF Installer . | . . . . . Robots Hacked . | . . . . . Non-combat . | . . . . . Combat . | . . . . . Robot Hacks Applied . | . . . . . Relay Couplers Released . | . . . . . Fabnet Peak Effective % . | . . . . . Robots Rewired . | . . . . . Allies Hacked . | . . . . . Hacks Repelled . | . . . . . Allies | -11 -10 -9 -8 -7 -------- Run | Yrd Mat Mat Mat Fac Total Allies . | . . . . . Largest Group . | . . . . . Highest-Rated Group . | . . . . . Highest-Rated Ally . | . . . . . Total Orders . | . . . . . Ally Attacks . | . . . . . Total Damage . | . . . . . Kills . | . . . . . Allies Corrupted . | . . . . . Allies Melted . | . . . . . Intel | -11 -10 -9 -8 -7 ------- Run | Yrd Mat Mat Mat Fac Active Infowar (turns) 158 | . . . . 158 Terrain 142 | . . . . 142 ECM 16 | . . . . 16 Robot Analysis Total . | . . . . . Derelict Logs Recovered . | . . . . . Drone Launches . | . . . . . Drone Recoveries . | . . . . . Exploration | -11 -10 -9 -8 -7 ------------- Run | Yrd Mat Mat Mat Fac Turns Passed 2276 | 42 540 747 479 468 Spaces Moved 1459 | 38 342 462 293 324 Core 51 | 3 . . 18 30 Treads . | . . . . . Legs 97 | . . . . 97 Wheels 1266 | 35 342 462 275 152 Hover . | . . . . . Flight 45 | . . . . 45 Fastest Speed 35 | 50 90 95 50 35 Average Speed 110 | 84 100 111 106 125 Slowest Speed 500 | 90 105 125 500 200 Overloaded Moves . | . . . . . Propulsion Burnouts . | . . . . . Robots Hopped . | . . . . . Potential Cave-ins . | . . . . . Cave-ins Triggered 1 | . . . . 1 Exploration Rate (%) 23 | 4 41 41 22 11 Regions Visited 4 Branch Regions . Pre-discovered Areas . | . . . . . Known Exits Taken . | . . . . . Unknown Exits Taken 4 | 1 1 1 1 . Scrap Searched . | . . . . . Spaces Dug . | . . . . . Terrain Destroyed 67 | . . 27 2 38 Melee . | . . . . . Projectile 2 | . . . 2 . AOE 65 | . . 27 . 38 Terrain Rammed . | . . . . . Walls Destroyed . | . . . . . Machines Disabled . | . . . . . Actions | -11 -10 -9 -8 -7 --------- Run | Yrd Mat Mat Mat Fac Total 1812 | 45 463 562 368 374 Wait 75 | . 52 5 11 7 Move 1455 | 37 341 461 292 324 Hop . | . . . . . Pick Up 38 | 3 13 10 7 5 Fast Attach 21 | 5 4 1 3 8 Attach 27 | . 4 8 5 10 Detach 8 | . 1 1 . 6 Swap 15 | . 2 7 6 . Drop 12 | . 2 2 4 4 Fire 155 | . 41 66 40 8 Melee . | . . . . . Ram 5 | . 3 1 . 1 Kick 1 | . . . . 1 Crush . | . . . . . Escape Stasis . | . . . . . Rewire . | . . . . . Trap . | . . . . . Miscellaneous . | . . . . . Route ------- -11/Scrapyard -10/Materials (discovered 3 exits: *Mat / [*Min] / [*Sub]) -9/Materials (discovered 2 exits: *Mat / *Min) -8/Materials -7/Factory History --------- Turn | Location | Event 7 | -11/Scrapyard | Discovered new exit (range 15) 43 | -11/Scrapyard | Entered Materials 318 | -10/Materials | Build established: Mutant 327 | -10/Materials | Repaired Com. Wheel 354 | -10/Materials | Repaired Wheel 373 | -10/Materials | Discovered new exit (range 9) 418 | -10/Materials | Discovered new exit (range 10) 468 | -10/Materials | Discovered new exit (range 8) 583 | -10/Materials | Entered another Materials area 583 | -9/Materials | Evolved 2 slots: Utility x2 609 | -9/Materials | Identified exit to Mines 955 | -9/Materials | Discovered new exit (range 8) 1144 | -9/Materials | Core integrity fell below 50% 1330 | -9/Materials | Entered another Materials area 1330 | -8/Materials | Evolved 2 slots: Utility x1, Weapon x1 1526 | -8/Materials | Lost 5 parts (1n1u3w) 1800 | -8/Materials | Core integrity fell below 50% 1801 | -8/Materials | Released all parts (5) 1804 | -8/Materials | Discovered new exit (range 10) 1809 | -8/Materials | Entered Factory 1809 | -7/Factory | Evolved 2 slots: Propulsion x1, Utility x1 1831 | -7/Factory | Lost 6 parts (2n1u3w) 1872 | -7/Factory | Identified exit to DSF 2109 | -7/Factory | Lost 3 parts (1p1n1u) 2239 | -7/Factory | Crushed by falling debris 2239 | -7/Factory | Core integrity fell below 50% 2271 | -7/Factory | Core integrity fell below 20% 2277 | -7/Factory | Destroyed by C-17 Slicer with Concussive RPG Last Messages --------------- 02239_ Crushed by falling debris. 02239_ Imp. Terrain Scanner destroyed. 02239_ System corrupted by crushing effect (+2). 02239_ Titanium Leg destroyed. 02239_ System corrupted by crushing effect (+4). 02239_ Plasma Cannon destroyed. 02239_ System corrupted by crushing effect (+3). 02241_ Y-54 Guardian destroyed. 02243_ The unstable cave ceiling collapses. 02243_ Dropped Hvy. Rocket Launcher. 02246_ System corrupted: Matter fused (-10). 02251_ The unstable cave ceiling collapses. 02261_ H-61 Shepherd calls for reinforcements. 02261_ ALERT: Suspicious intruders detected, dispatching Cutter reinforcements to area. 02261_ Cesium-ion Thruster destroyed. 02263_ System corrupted: Matter fused (-6). 02265_ Penetrated by Slug. 02270_ Acquired Hvy. Mace. 02271_ Hvy. Mace severed. 02271_ Slammed into C-17 Slicer. Map ----- +----------------------------------------------------+ | ?????????????????????????????????????????????????? | | ?????????????????????????????????????????????????? | | ?????????????????????????????????????????????????? | | ?????????????????????????????????????????????????? | | ?????????????????????????????????????????????????? | | ?????????????????????????????????????????????????? | | ????????????????????????? ????????????????????? | | ????????????????????? ? ????????????????????? | | ???????????????????# #???????????????????? | | ???????????????????# #???????????????????? | | ???????????????????+ #????################ | | ???????????????????# #????# + | | ???????????????????# #????# ! [ ###### | | ???????????????????# ?????# #????? | | ???????????????????# H ?????# / #????? | | ????????????????????# #?????# !#????? | | ????????????????????# #?????# #????# | | ????????????????????# #?????# ##### | | ????????????????????# #?????# # | | ????????????????????# ##############+# | | ????????????????????# ! | | ????????????????????# | | ????????????????????# | | ???????????????????## ############# T# | | ???????????????????#; #??????????#### | | ????????????????????# @ ??????????????# | | ????????????????????# +??????????????#### | | ????????????????????# #?????????????????# | | ????????????????????# +?????????????????# | | ????????????????????# #????????????????## | | ????????##### ?????#; c #????????????????# | | ????? ###Y #????????????????# | | ????? pc % #????????????????# | | ????? ######/#######?????????????# | | ????????##### ??# #?????????????# | | ????????????#?????# "" #?????????????# | | ??????????????????# / """ #?????????????# | | ??????????????????# F" #?????????????# | | ??????????????????# """ """ #?????????????# | | ??????????????????# """ "" #?????????????# | | ??????????????????# """ #?????????????# | | ??????????????????# #?????????????# | | ??????????????????# """ """ #????# #### | | ??????????????????# = ""? """ + | | ??????????????????# "???"""?#????# ######## | | ??????????????????# ?????????????????????????? | | ??????????????????#####??????????????????????????? | | ?????????????????????????????????????????????????? | | ?????????????????????????????????????????????????? | | | +----------------------------------------------------+ Best States ------------- Heat Dissipation 53 Energy Generation 14 Energy Capacity 280 Matter Stores 300 Matter Capacity 300 Sight Range 16 Terrain Scan Range 16 Terrain Scan Density 10 ECM Strength 2 Armor Coverage 375 Evasion (%) 63 Targeting Accuracy 15 Item Schematics ----------------- None Robot Schematics ------------------ None Fabricated ------------ Nothing Repaired ---------- Com. Wheel | 10% | -10/Materials Wheel | 7% | -10/Materials Studied --------- None Alien Tech Used ----------------- None Achievements -------------- Ghost 'Em Live, Flee, And Rebuild Challenges ------------ None Game ------ Seed ArcHardenedBotcube Manual? 0 Play Time 00:30:31 Cumulative 19.2 hours Start 2025.12.30 @ 20:36:25 End 2025.12.30 @ 21:05:55 Sessions 1 Manual Loads 0 Difficulty Rogue Special Mode None Game No. 24 Rogue 24 Adventurer 0 Explorer 0 Win Type - Total 0 Types 0/0/0/0/0/0/0/0/0/0 Lore% 12 Gallery% 25 Achievement% 18 Wizard Run 0 Options --------- Layout 0 ASCII 0 Keyboard 1 Movement Numpad Keybinds 0 Fullscreen 2 Font 18/SmallcapsGlow Map View 112x50 Zoom Use 0% Tactical HUD 1 Map Filters NONE Filters NONE Steam 1 RUN: 64d31f24-7ae9-4561-931e-e1fdeb8dfdf1